Workbook

Sheet 1 день
A1: 1 день
B2: № по сборн. Рецеп. | C2: наименование | D2: выход, гр. | E2: белки,г. | F2: жиры,г. | G2: углеводы,г. | H2: Энерг.цен.,ккал | I2: Минеральные элементы | L2: Витамины
I3: Са | J3: Mg | K3: Fe | L3: В1, мг. | M3: В2, мг. | N3: С, мг.
C4: завтрак
B5: 1.3 | C5: Бутерброд с маслом | D5: 115 | E5: 2.4 | F5: 12.7 | G5: 14.6 | H5: 186 | I5: 8.7 | J5: 9.9 | K5: 0.63 | L5: 0.05 | M5: 0.03 | N5: 0
B6: 210 | C6: каша,,дружба,, | D6: 250 | E6: 5.7 | F6: 7.8 | G6: 30.1 | H6: 216 | I6: 114.7 | J6: 33.38 | K6: 0.72 | L6: 0.11 | M6: 0.14 | N6: 0.48
B7: 1.4 | C7: сыр голандский | D7: 30 | E7: 7.9 | F7: 8 | G7: 0 | H7: 105 | I7: 300 | J7: 16.5 | K7: 0.21 | L7: 0.01 | M7: 0.11 | N7: 0.21
B8: 304 | C8: кофейный напиток | D8: 200 | E8: 2.9 | F8: 2.8 | G8: 14.9 | H8: 94 | I8: 105.86 | J8: 12.18 | K8: 0.11 | L8: 0.03 | M8: 0.12 | N8: 0.52
C9: итого | D9: =SUM(D5:D8) -> 595 | E9: =SUM(E5:E8) -> 18.9 | F9: =SUM(F5:F8) -> 31.3 | G9: =SUM(G5:G8) -> 59.6 | H9: =SUM(H5:H8) -> 601 | I9: =SUM(I5:I8) -> 529.26 | J9: =SUM(J5:J8) -> 71.96 | K9: =SUM(K5:K8) -> 1.67 | L9: =SUM(L5:L8) -> 0.2 | M9: =SUM(M5:M8) -> 0.4 | N9: =SUM(N5:N8) -> 1.21
C10: завтрак 2
C11: сок фруктовый | D11: 200 | E11: 0.5 | F11: 0 | G11: 10.6 | H11: 44 | I11: 7.85 | J11: 2.09 | K11: 0.79 | L11: 0.004 | M11: 0.005 | N11: 0.48
C12: печенье | D12: 50 | E12: 1.5 | F12: 2 | G12: 14.9 | H12: 83.4 | I12: 0 | J12: 4 | K12: 0.4 | L12: 0 | M12: 0 | N12: 0
C13: итого | D13: =SUM(D11:D12) -> 250 | E13: =SUM(E11:E12) -> 2 | F13: 2 | G13: 25.5 | H13: 127.4 | I13: 7.85 | J13: 6.09 | K13: 1.19 | L13: 0.004 | M13: 0.005 | N13: 0.48
C14: обед
B15: 17 | C15: салат из моркови | D15: 100 | E15: 1.1 | F15: 8.9 | G15: 8.3 | H15: 120 | I15: 20.99 | J15: 29.09 | K15: 0.54 | L15: 0.04 | M15: 0.05 | N15: 1.76
B16: 55 | C16: щи из свеж.капусты | D16: 300 | E16: 2 | F16: 5.4 | G16: 8.8 | H16: 96 | I16: 40.62 | J16: 19.86 | K16: 0.73 | L16: 0.06 | M16: 0.06 | N16: 12.01
B17: 133 | C17: курица отварная | D17: 100 | E17: 26.1 | F17: 24.6 | G17: 0.3 | H17: 327 | I17: 22.58 | J17: 24.33 | K17: 2.14 | L17: 0.08 | M17: 0.18 | N17: 1.27
B18: 8.1 | C18: рис отварной | D18: 180 | E18: 4.5 | F18: 7 | G18: 45.3 | H18: 271 | I18: 21.17 | J18: 18.15 | K18: 0.5 | L18: 0.02 | M18: 0.02 | N18: 0
B19: 319 | C19: напиток из плодов шиповника | D19: 200 | E19: 0.7 | F19: 0.3 | G19: 29 | H19: 127 | I19: 12.22 | J19: 3.23 | K19: 0.64 | L19: 0.01 | M19: 0.05 | N19: 80
B20: 1, 5 | C20: хлеб пшеничный | D20: 70 | E20: 3.1 | F20: 7 | G20: 33.8 | H20: 172.2 | I20: 16.1 | J20: 23.1 | K20: 1.4 | L20: 0.11 | M20: 0.04 | N20: 0
B21: 1.6 | C21: хлеб ржаной | D21: 40 | E21: 2.6 | F21: 0.48 | G21: 13.3 | H21: 77.2 | I21: 14 | J21: 18.8 | K21: 1.56 | L21: 0.07 | M21: 0.02 | N21: 0
C22: итого | D22: =SUM(D15:D21) -> 990 | E22: 40.1 | F22: 53.68 | G22: 138.8 | H22: 1190.4 | I22: 147.68 | J22: 136.56 | K22: 7.51 | L22: 0.39 | M22: 0.42 | N22: 95.04
C23: полдник
B24: 300 | C24: чай с сахаром | D24: 200 | E24: 0.2 | F24: 0 | G24: 9.1 | H24: 36 | I24: 0.26 | J24: 0 | K24: 0.03 | L24: 0 | M24: 0 | N24: 0
B25: 272 | C25: Пирог с повидлом | D25: 100 | E25: 6.2 | F25: 3.1 | G25: 57.7 | H25: 285 | I25: 18.04 | J25: 10.22 | K25: 1.11 | L25: 0.07 | M25: 0.04 | N25: 0.08
C26: Фрукт в ассортименте
C27: итого | D27: =SUM(D24:D25) -> 300 | E27: =SUM(E24:E25) -> 6.4 | F27: 3.1 | G27: 66.8 | H27: 321 | I27: 18.3 | J27: 10.22 | K27: 1.14 | L27: 0.07 | M27: 0.04 | N27: 0.08
C28: ужин
B29: 6 | C29: салат из капусты | D29: 100 | E29: 2.1 | F29: 4.5 | G29: 10.3 | H29: 94 | I29: 58.83 | J29: 20.53 | K29: 0.75 | L29: 0.03 | M29: 0.05 | N29: 21.65
B30: 122 | C30: запеканка картоф.с мясом | D30: 250 | E30: 18.4 | F30: 17.4 | G30: 30.7 | H30: 362 | I30: 28.99 | J30: 57.29 | K30: 2.42 | L30: 0.11 | M30: 0.16 | N30: 1.29
B31: 302 | C31: чай с сахаром,лимоном | D31: 200 | E31: 0.2 | F31: 0 | G31: 9.3 | H31: 38 | I31: 2.73 | J31: 0.73 | K31: 0.06 | L31: 0 | M31: 0 | N31: 1.12
B32: 1, 5 | C32: хлеб пшеничный | D32: 70 | E32: 3.1 | F32: 7 | G32: 33.8 | H32: 172.2 | I32: 16.1 | J32: 23.1 | K32: 1.4 | L32: 0.11 | M32: 0.04 | N32: 0
B33: 1.6 | C33: хлеб ржаной | D33: 40 | E33: 2.6 | F33: 0.48 | G33: 13.3 | H33: 77.2 | I33: 14 | J33: 18.8 | K33: 1.56 | L33: 0.07 | M33: 0.02 | N33: 0
C34: итого | D34: =SUM(D29:D33) -> 660 | E34: =SUM(E29:E33) -> 26.4 | F34: 29.38 | G34: 97.4 | H34: 743.4 | I34: 120.65 | J34: 120.45 | K34: 6.19 | L34: 0.32 | M34: 0.27 | N34: 24.06
C35: ужин 2
B36: 298 | C36: кисломол.прод. | D36: 200 | E36: 5.7 | F36: 6.3 | G36: 17.6 | H36: 151 | I36: 235.2 | J36: 27.44 | K36: 0.23 | L36: 0.06 | M36: 0.33 | N36: 1.37
C37: итого за день | D37: =SUM(D9+D13+D22+D27+D34+D36) -> 2995 | E37: 99.5 | F37: 125.76 | G37: 405.7 | H37: 3134.2 | I37: 1058.94 | J37: 372.72 | K37: 17.93 | L37: 1.044 | M37: 1.465 | N37: 122.24

Sheet 2 день
A1: 2 день
B2: № по сборн. Рецеп. | C2: наименование | D2: выход, гр. | E2: белки,г. | F2: жиры,г. | G2: углеводы,г. | H2: Энерг.цен.,ккал | I2: Минеральные элементы | L2: Витамины
I3: Са | J3: Mg | K3: Fe | L3: В1, мг. | M3: В2, мг. | N3: С, мг.
C4: завтрак
B5: 1.3 | C5: Бутерброд с маслом | D5: 115 | E5: 2.4 | F5: 12.7 | G5: 14.6 | H5: 186 | I5: 8.7 | J5: 9.9 | K5: 0.63 | L5: 0.05 | M5: 0.03 | N5: 0
B6: 208 | C6: каша пшенная молочная | D6: 250 | E6: 6.7 | F6: 7.6 | G6: 32.6 | H6: 222 | I6: 120.25 | J6: 32.58 | K6: 1.65 | L6: 0.12 | M6: 0.16 | N6: 0.47
B7: 306 | C7: какао с молоком | D7: 200 | E7: 3.6 | F7: 3.3 | G7: 13.7 | H7: 98 | I7: 110.37 | J7: 26.97 | K7: 0.88 | L7: 0.03 | M7: 0.13 | N7: 0.52
C8: итого | D8: =SUM(D5:D7) -> 565 | E8: =SUM(E5:E7) -> 12.7 | F8: =SUM(F5:F7) -> 23.6 | G8: =SUM(G5:G7) -> 60.9 | H8: =SUM(H5:H7) -> 506 | I8: =SUM(I5:I7) -> 239.32 | J8: =SUM(J5:J7) -> 69.45 | K8: =SUM(K5:K7) -> 3.16 | L8: =SUM(L5:L7) -> 0.2 | M8: =SUM(M5:M7) -> 0.32 | N8: =SUM(N5:N7) -> 0.99
C9: завтрак 2
B10: 234 | C10: Омлет | D10: 155 | E10: 14.6 | F10: 25.6 | G10: 2.6 | H10: 299 | I10: 100.46 | J10: 16.81 | K10: 2.5 | L10: 0.07 | M10: 0.46 | N10: 0.22
B11: 304 | C11: кофейный напиток | D11: 200 | E11: 2.9 | F11: 2.8 | G11: 14.9 | H11: 94 | I11: 105.86 | J11: 12.18 | K11: 0.11 | L11: 0.03 | M11: 0.12 | N11: 0.52
C12: итого | D12: =SUM(D10:D11) -> 355 | E12: =SUM(E10:E11) -> 17.5 | F12: 28.4 | G12: 17.5 | H12: 393 | I12: 206.32 | J12: 28.99 | K12: 2.61 | L12: 0.1 | M12: 0.58 | N12: 0.74
C13: обед
B14: 42 | C14: винегрет овощной | D14: 100 | E14: 1.4 | F14: 2.6 | G14: 8.2 | H14: 66 | I14: 28.03 | J14: 19.49 | K14: 0.84 | L14: 0.05 | M14: 0.04 | N14: 13.28
B15: 64 | C15: Суп с клецками | D15: 300 | E15: 3.2 | F15: 3.2 | G15: 19 | H15: 123 | I15: 16.62 | J15: 21.2 | K15: 0.92 | L15: 0.09 | M15: 0.07 | N15: 5.52
B16: 2.25 | C16: Котлеты мясные паровые | D16: 100 | E16: 16.82 | F16: 11.42 | G16: 7.28 | H16: 200 | I16: 12.6 | J16: 8.1 | K16: 5.6 | L16: 11.5 | M16: 10 | N16: 1.8
B17: 146 | C17: картофельное пюре | D17: 200 | E17: 4.1 | F17: 6.3 | G17: 26.7 | H17: 187 | I17: 47.47 | J17: 37.87 | K17: 1.38 | L17: 0.16 | M17: 0.14 | N17: 13.84
B18: 309 | C18: компот из кураги | D18: 200 | E18: 1.2 | F18: 0.1 | G18: 29.5 | H18: 127 | I18: 34.67 | J18: 21.7 | K18: 0.73 | L18: 0.02 | M18: 0.04 | N18: 0.16
B19: 1, 5 | C19: хлеб пшеничный | D19: 70 | E19: 3.1 | F19: 7 | G19: 33.8 | H19: 172.2 | I19: 16.1 | J19: 23.1 | K19: 1.4 | L19: 0.11 | M19: 0.04 | N19: 0
B20: 1.6 | C20: хлеб ржаной | D20: 40 | E20: 2.6 | F20: 0.48 | G20: 13.3 | H20: 77.2 | I20: 14 | J20: 18.8 | K20: 1.56 | L20: 0.07 | M20: 0.02 | N20: 0
C21: итого | D21: =SUM(D14:D20) -> 1010 | E21: 32.42 | F21: 31.1 | G21: 137.78 | H21: 952.4 | I21: 169.49 | J21: 150.26 | K21: 12.43 | L21: 12 | M21: 10.35 | N21: 34.6
C22: полдник
C23: сок фруктовый | D23: 200 | E23: 0.5 | F23: 0 | G23: 10.6 | H23: 44 | I23: 7.85 | J23: 2.09 | K23: 0.79 | L23: 0.004 | M23: 0.005 | N23: 0.48
B24: 289 | C24: булочка сдобная | D24: 100 | E24: 7.8 | F24: 8.5 | G24: 52.3 | H24: 321 | I24: 26.96 | J24: 10.57 | K24: 0.91 | L24: 0.08 | M24: 0.07 | N24: 0.05
C25: Фрукт в ассортименте
C26: итого | D26: =SUM(D23:D24) -> 300 | E26: =SUM(E23:E24) -> 8.3 | F26: 8.5 | G26: 62.9 | H26: 365 | I26: 34.81 | J26: 12.66 | K26: 1.7 | L26: 0.084 | M26: 0.075 | N26: 0.53
C27: ужин
B28: 41 | C28: салат ,,студенческий,, | D28: 100 | E28: 3.5 | F28: 10.5 | G28: 7.4 | H28: 142 | I28: 19.82 | J28: 20.17 | K28: 0.82 | L28: 0.08 | M28: 0.1 | N28: 2.51
B29: 133 | C29: Курица отварная | D29: 100 | E29: 43 | F29: 36.2 | G29: 0.4 | H29: 499 | I29: 34.61 | J29: 35.82 | K29: 3.38 | L29: 0.1 | M29: 0.24 | N29: 1.54
B30: 8.1 | C30: Рис отварной | D30: 180 | E30: 4.5 | F30: 7 | G30: 45.3 | H30: 271 | I30: 21.17 | J30: 18.15 | K30: 0.5 | L30: 0.02 | M30: 0.02 | N30: 0
B31: 302 | C31: чай с сахаром,лимоном | D31: 200 | E31: 0.2 | F31: 0 | G31: 9.3 | H31: 38 | I31: 2.73 | J31: 0.73 | K31: 0.06 | L31: 0 | M31: 0 | N31: 1.12
B32: 1, 5 | C32: хлеб пшеничный | D32: 70 | E32: 3.1 | F32: 7 | G32: 33.8 | H32: 172.2 | I32: 16.1 | J32: 23.1 | K32: 1.4 | L32: 0.11 | M32: 0.04 | N32: 0
B33: 1.6 | C33: хлеб ржаной | D33: 40 | E33: 2.6 | F33: 0.48 | G33: 13.3 | H33: 77.2 | I33: 14 | J33: 18.8 | K33: 1.56 | L33: 0.07 | M33: 0.02 | N33: 0
C34: итого | D34: =SUM(D28:D33) -> 690 | E34: =SUM(E28:E33) -> 56.9 | F34: 61.18 | G34: 109.5 | H34: 1199.4 | I34: 108.43 | J34: 116.77 | K34: 7.72 | L34: 0.38 | M34: 0.42 | N34: 5.17
C35: ужин 2
B36: 298 | C36: кисломол.прод. | D36: 200 | E36: 5.7 | F36: 6.3 | G36: 17.6 | H36: 151 | I36: 235.2 | J36: 27.44 | K36: 0.23 | L36: 0.06 | M36: 0.33 | N36: 1.37
C37: итого за день | D37: =D8+D12+D21+D26+D34+D36 -> 3120 | E37: 133.52 | F37: 159.08 | G37: 406.18 | H37: 3566.8 | I37: 993.57 | J37: 405.57 | K37: 27.85 | L37: 12.824 | M37: 12.075 | N37: 43.4

Sheet 3 день
A2: № по сборн. Рецеп. | B2: наименование | C2: выход, гр. | D2: белки,г. | E2: жиры,г. | F2: углеводы,г. | G2: Энерг.цен.,ккал | H2: Минеральные элементы | K2: Витамины
H3: Са | I3: Mg | J3: Fe | K3: В1, мг. | L3: В2, мг. | M3: С, мг.
B4: завтрак
A5: 1.3 | B5: Бутерброд с маслом | C5: 115 | D5: 2.4 | E5: 12.7 | F5: 14.6 | G5: 186 | H5: 8.7 | I5: 9.9 | J5: 0.63 | K5: 0.05 | L5: 0.03 | M5: 0
A6: 192 | B6: каша,,геркулес,, | C6: 250 | D6: 7.2 | E6: 9.1 | F6: 30.8 | G6: 239 | H6: 120.32 | I6: 57.76 | J6: 1.46 | K6: 0.16 | L6: 0.14 | M6: 0.18
A7: 304 | B7: кофейный напиток | C7: 200 | D7: 2.9 | E7: 2.8 | F7: 14.9 | G7: 94 | H7: 105.86 | I7: 12.18 | J7: 0.11 | K7: 0.03 | L7: 0.12 | M7: 0.52
B8: итого | C8: =SUM(C5:C7) -> 565 | D8: =SUM(D5:D7) -> 12.5 | E8: =SUM(E5:E7) -> 24.6 | F8: =SUM(F5:F7) -> 60.3 | G8: =SUM(G5:G7) -> 519 | H8: =SUM(H5:H7) -> 234.88 | I8: =SUM(I5:I7) -> 79.84 | J8: =SUM(J5:J7) -> 2.2 | K8: =SUM(K5:K7) -> 0.24 | L8: =SUM(L5:L7) -> 0.29 | M8: =SUM(M5:M7) -> 0.7
B9: завтрак 2
A10: 300 | B10: Чай с сахаром | C10: 200 | D10: 0.2 | E10: 0 | F10: 9.1 | G10: 36 | H10: 0.26 | I10: 0 | J10: 0.03 | K10: 0 | L10: 0 | M10: 0
A11: 1.1 | B11: Бутеброд с колбасой | C11: 60 | D11: 4.1 | E11: 2.7 | F11: 0 | G11: 41 | H11: 5.63 | I11: 4.82 | J11: 0.85 | K11: 0.01 | L11: 0.02 | M11: 0
B12: итого | C12: =SUM(C10:C11) -> 260 | D12: =SUM(D10:D11) -> 4.3 | E12: 2.7 | F12: 9.1 | G12: 77 | H12: 5.89 | I12: 4.82 | J12: 0.88 | K12: 0.01 | L12: 0.02 | M12: 0
B13: обед
A14: 13 | B14: салат из свежих помидор | C14: 100 | D14: 0.9 | E14: 5 | F14: 4.8 | G14: 71 | H14: 15.87 | I14: 14.78 | J14: 0.71 | K14: 0.05 | L14: 0.03 | M14: 16.91
A15: 65 | B15: Суп с бобовами | C15: 300 | D15: 9 | E15: 5.4 | F15: 38.9 | G15: 253 | H15: 46.41 | I15: 52.31 | J15: 2.77 | K15: 0.24 | L15: 0.1 | M15: 5.59
A16: 2.2 | B16: Тефтели | C16: 120 | D16: 18.54 | E16: 12.45 | F16: 7.21 | G16: 216 | H16: 35.58 | I16: 20.75 | J16: 0.92 | K16: 0.04 | L16: 0.09 | M16: 0.35
A17: 158 | B17: Рагу из овощей | C17: 230 | D17: 4.2 | E17: 17.8 | F17: 22.6 | G17: 276 | H17: 40.4 | I17: 31.07 | J17: 1.28 | K17: 0.08 | L17: 0.08 | M17: 5.1
A18: 309 | B18: компот из чернослива | C18: 200 | D18: 1.2 | E18: 0.1 | F18: 29.5 | G18: 127 | H18: 34.67 | I18: 21.7 | J18: 0.73 | K18: 0.02 | L18: 0.04 | M18: 0.16
A19: 1.5 | B19: хлеб пшеничный | C19: 70 | D19: 3.1 | E19: 7 | F19: 33.8 | G19: 172.2 | H19: 16.1 | I19: 23.1 | J19: 1.4 | K19: 0.11 | L19: 0.04 | M19: 0
A20: 1.6 | B20: хлеб ржаной | C20: 40 | D20: 2.6 | E20: 0.48 | F20: 13.3 | G20: 77.2 | H20: 14 | I20: 18.8 | J20: 1.56 | K20: 0.07 | L20: 0.02 | M20: 0
B21: итого | C21: =SUM(C14:C20) -> 1060 | D21: 39.54 | E21: 48.23 | F21: 150.11 | G21: 1192.4 | H21: 203.03 | I21: 182.51 | J21: 9.37 | K21: 0.61 | L21: 0.4 | M21: 28.11
B22: полдник
A23: 300 | B23: Чай с сахаром | C23: 200 | D23: 0.2 | E23: 0 | F23: 9.1 | G23: 36 | H23: 0.26 | I23: 0 | J23: 0.03 | K23: 0 | L23: 0 | M23: 0
A24: 239 | B24: Запеканка из творога | C24: 170 | D24: 28.9 | E24: 20.3 | F24: 43.2 | G24: 475 | H24: 281 | I24: 42.53 | J24: 1.08 | K24: 0.1 | L24: 0.43 | M24: 0.56
B25: Фрукт в ассортименте
B26: итого | C26: =SUM(C23:C24) -> 370 | D26: =SUM(D23:D24) -> 29.1 | E26: 20.3 | F26: 52.3 | G26: 511 | H26: 281.26 | I26: 42.53 | J26: 1.11 | K26: 0.1 | L26: 0.43 | M26: 0.56
B27: ужин
A28: 40 | B28: салат,,степной,, | C28: 100 | D28: 1.6 | E28: 3.4 | F28: 8.2 | G28: 74 | H28: 18.46 | I28: 19.53 | J28: 0.61 | K28: 0.06 | L28: 0.05 | M28: 2.98
A29: 80 | B29: Рыба тушеная с овощами | C29: 120 | D29: 10.7 | E29: 5.2 | F29: 5.6 | G29: 113 | H29: 9.71 | I29: 11.61 | J29: 0.34 | K29: 0.02 | L29: 0.02 | M29: 1.55
A30: 146 | B30: картофельное пюре | C30: 200 | D30: 4.1 | E30: 6.3 | F30: 26.7 | G30: 187 | H30: 47.47 | I30: 37.87 | J30: 1.38 | K30: 0.16 | L30: 0.14 | M30: 13.84
A31: 302 | B31: чай с сах.лим. | C31: 200 | D31: 0.2 | E31: 0 | F31: 9.3 | G31: 38 | H31: 2.73 | I31: 0.73 | J31: 0.06 | K31: 0 | L31: 0 | M31: 1.12
A32: 1.5 | B32: хлеб пшеничный | C32: 70 | D32: 3.1 | E32: 7 | F32: 33.8 | G32: 172.2 | H32: 16.1 | I32: 23.1 | J32: 1.4 | K32: 0.11 | L32: 0.04 | M32: 0
A33: 1.6 | B33: хлеб ржаной | C33: 40 | D33: 2.6 | E33: 0.48 | F33: 13.3 | G33: 77.2 | H33: 14 | I33: 18.8 | J33: 1.56 | K33: 0.07 | L33: 0.02 | M33: 0
B34: итого | C34: =SUM(C28:C33) -> 730 | D34: =SUM(D28:D33) -> 22.3 | E34: 22.38 | F34: 96.9 | G34: 661.4 | H34: 108.47 | I34: 111.64 | J34: 5.35 | K34: 0.42 | L34: 0.27 | M34: 19.49
A35: 298 | B35: Кисломолочный напиток | C35: 200 | D35: 5.7 | E35: 6.3 | F35: 17.6 | G35: 151 | H35: 235.2 | I35: 27.44 | J35: 0.23 | K35: 0.06 | L35: 0.33 | M35: 1.37
B36: Итого за день | C36: =C8+C12+C21+C26+C34+C35 -> 3185 | D36: 113.44 | E36: 124.51 | F36: 386.31 | G36: 3111.8 | H36: 1068.73 | I36: 448.78 | J36: 19.14 | K36: 1.44 | L36: 1.74 | M36: 50.23

Sheet 4 день
A2: № по сборн. Рецеп. | B2: наименование | C2: выход, гр. | D2: белки,г. | E2: жиры,г. | F2: углеводы,г. | G2: Энерг.цен.,ккал | H2: Минеральные элементы | K2: Витамины
H3: Са | I3: Mg | J3: Fe | K3: В1, мг. | L3: В2, мг. | M3: С, мг.
B4: завтрак
A5: 1.3 | B5: Бутерброд с маслом | C5: 115 | D5: 2.4 | E5: 12.7 | F5: 14.6 | G5: 186 | H5: 8.7 | I5: 9.9 | J5: 0.63 | K5: 0.05 | L5: 0.03 | M5: 0
A6: 188 | B6: каша ячневая молочная | C6: 250 | D6: 5.8 | E6: 4.8 | F6: 36.3 | G6: 224 | H6: 46.14 | I6: 27.88 | J6: 1.03 | K6: 0.13 | L6: 0.05 | M6: 0
A7: 306 | B7: какао с молоком | C7: 200 | D7: 3.6 | E7: 3.3 | F7: 13.7 | G7: 98 | H7: 110.37 | I7: 26.97 | J7: 0.88 | K7: 0.03 | L7: 0.13 | M7: 0.52
B8: итого | C8: =SUM(C5:C7) -> 565 | D8: =SUM(D5:D7) -> 11.8 | E8: =SUM(E5:E7) -> 20.8 | F8: =SUM(F5:F7) -> 64.6 | G8: =SUM(G5:G7) -> 508 | H8: =SUM(H5:H7) -> 165.21 | I8: =SUM(I5:I7) -> 64.75 | J8: =SUM(J5:J7) -> 2.54 | K8: =SUM(K5:K7) -> 0.21 | L8: =SUM(L5:L7) -> 0.21 | M8: =SUM(M5:M7) -> 0.52
B9: завтрак 2
A10: 1.1 | B10: бутерброд с колбасой | C10: 50 | D10: 4.1 | E10: 2.7 | F10: 0 | G10: 41 | H10: 5.63 | I10: 4.82 | J10: 0.85 | K10: 0.01 | L10: 0.02 | M10: 0
A11: 304 | B11: кофейный напиток | C11: 200 | D11: 2.9 | E11: 2.8 | F11: 14.9 | G11: 94 | H11: 105.86 | I11: 12.18 | J11: 0.11 | K11: 0.03 | L11: 0.12 | M11: 0.52
B12: итого | C12: =SUM(C10:C11) -> 250 | D12: =SUM(D10:D11) -> 7 | E12: 5.5 | F12: 14.9 | G12: 135 | H12: 111.49 | I12: 17 | J12: 0.96 | K12: 0.04 | L12: 0.14 | M12: 0.52
B13: обед
A14: 6 | B14: салат из капусты | C14: 100 | D14: 2.1 | E14: 4.5 | F14: 10.3 | G14: 94 | H14: 58.83 | I14: 20.53 | J14: 0.75 | K14: 0.03 | L14: 0.05 | M14: 21.65
A15: 62 | B15: Суп с лапшой домашней | C15: 300 | D15: 3.4 | E15: 2.8 | F15: 21.4 | G15: 131 | H15: 18.03 | I15: 25.12 | J15: 1.03 | K15: 0.1 | L15: 0.07 | M15: 7.92
A16: 80 | B16: Рыба тушеная с овощами | C16: 120 | D16: 10.7 | E16: 5.2 | F16: 5.6 | G16: 113 | H16: 9.71 | I16: 11.61 | J16: 0.34 | K16: 0.02 | L16: 0.02 | M16: 1.55
A17: 146 | B17: картофельное пюре | C17: 200 | D17: 4.1 | E17: 6.3 | F17: 26.7 | G17: 187 | H17: 47.47 | I17: 37.87 | J17: 1.38 | K17: 0.16 | L17: 0.14 | M17: 13.84
A18: 309 | B18: компот из изюма | C18: 200 | D18: 1.2 | E18: 0.1 | F18: 29.5 | G18: 127 | H18: 34.67 | I18: 21.7 | J18: 0.73 | K18: 0.02 | L18: 0.04 | M18: 0.16
A19: 1.5 | B19: хлеб пшеничный | C19: 70 | D19: 3.1 | E19: 7 | F19: 33.8 | G19: 172.2 | H19: 16.1 | I19: 23.1 | J19: 1.4 | K19: 0.11 | L19: 0.04 | M19: 0
B20: хлеб ржаной | C20: 40 | D20: 2.6 | E20: 0.48 | F20: 13.3 | G20: 77.2 | H20: 14 | I20: 18.8 | J20: 1.56 | K20: 0.07 | L20: 0.02 | M20: 0
B21: итого | C21: =SUM(C14:C20) -> 1030 | D21: 27.2 | E21: 26.38 | F21: 140.6 | G21: 901.4 | H21: 198.81 | I21: 158.73 | J21: 7.19 | K21: 0.51 | L21: 0.38 | M21: 45.12
B22: полдник
B23: печенье | C23: 50 | D23: 1.5 | E23: 2 | F23: 14.9 | G23: 83.4 | H23: 0 | I23: 4 | J23: 0.4 | K23: 0 | L23: 0 | M23: 0
B24: кефир | C24: 200 | D24: 5.7 | E24: 6.3 | F24: 17.6 | G24: 151 | H24: 235.2 | I24: 27.44 | J24: 0.23 | K24: 0.06 | L24: 0.33 | M24: 1.37
B25: Фрукт в ассортименте
B26: итого | C26: =SUM(C23:C24) -> 250 | D26: =SUM(D23:D24) -> 7.2 | E26: 8.3 | F26: 32.5 | G26: 234.4 | H26: 235.2 | I26: 31.44 | J26: 0.63 | K26: 0.06 | L26: 0.33 | M26: 1.37
B27: ужин
A28: 32 | B28: салат,,Школьный,, | C28: 100 | D28: 1.7 | E28: 7.4 | F28: 7.4 | G28: 108 | H28: 33.4 | I28: 20.86 | J28: 1.13 | K28: 0.04 | L28: 0.04 | M28: 4.58
A29: 100 | B29: котлета,,здоровье,, | C29: 120 | D29: 18.2 | E29: 15.9 | F29: 10.6 | G29: 261 | H29: 49.48 | I29: 37.23 | J29: 1.77 | K29: 0.07 | L29: 0.19 | M29: 0.5
A30: 227 | B30: рожки отварные | C30: 185 | D30: 6.5 | E30: 4.4 | F30: 40 | G30: 233 | H30: 11.06 | I30: 8.77 | J30: 0.88 | K30: 0.08 | L30: 0.02 | M30: 0
B31: чай с сах.лим. | C31: 200 | D31: 0.2 | E31: 0 | F31: 9.3 | G31: 38 | H31: 2.73 | I31: 0.73 | J31: 0.06 | K31: 0 | L31: 0 | M31: 1.12
A32: 1.5 | B32: хлеб пшеничный | C32: 70 | D32: 3.1 | E32: 7 | F32: 33.8 | G32: 172.2 | H32: 16.1 | I32: 23.1 | J32: 1.4 | K32: 0.11 | L32: 0.04 | M32: 0
A33: 1.6 | B33: хлеб ржаной | C33: 40 | D33: 2.6 | E33: 0.48 | F33: 13.3 | G33: 77.2 | H33: 14 | I33: 18.8 | J33: 1.56 | K33: 0.07 | L33: 0.02 | M33: 0
B34: итого | C34: =SUM(C28:C33) -> 715 | D34: =SUM(D28:D33) -> 32.3 | E34: 35.18 | F34: 114.4 | G34: 889.4 | H34: 126.77 | I34: 109.49 | J34: 6.8 | K34: 0.37 | L34: 0.31 | M34: 6.2
A35: 298 | B35: кислом.прод. | C35: 200 | D35: 5.7 | E35: 6.3 | F35: 17.6 | G35: 151 | H35: 235.2 | I35: 27.44 | J35: 0.23 | K35: 0.06 | L35: 0.33 | M35: 1.37
B36: итого за день | C36: =C8+C12+C21+C26+C35 -> 2295 | D36: 58.9 | E36: 67.28 | F36: 270.2 | G36: 1929.8 | H36: 945.91 | I36: 299.36 | J36: 11.55 | K36: 0.88 | L36: 1.39 | M36: 48.9

Sheet 5 день
A1: 5 день
B2: № по сборн. Рецеп. | C2: наименование | D2: выход, гр. | E2: белки,г. | F2: жиры,г. | G2: углеводы,г. | H2: Энерг.цен.,ккал | I2: Минеральные элементы | L2: Витамины
I3: Са | J3: Mg | K3: Fe | L3: В1, мг. | M3: В2, мг. | N3: С, мг.
C4: завтрак
B5: 1.3 | C5: Бутерброд с маслом | D5: 115 | E5: 2.4 | F5: 12.7 | G5: 14.6 | H5: 186 | I5: 8.7 | J5: 9.9 | K5: 0.63 | L5: 0.05 | M5: 0.03 | N5: 0
B6: 186 | C6: каша манная молочная | D6: 250 | E6: 7.7 | F6: 10.3 | G6: 37.9 | H6: 278 | I6: 116.74 | J6: 17.38 | K6: 0.38 | L6: 0.06 | M6: 0.14 | N6: 0.49
B7: 1.4 | C7: сыр голланд. | D7: 30 | E7: 7.9 | F7: 8 | G7: 0 | H7: 105 | I7: 300 | J7: 16.5 | K7: 0.21 | L7: 0.01 | M7: 0.11 | N7: 0.21
C8: какао с молоком | D8: 200 | E8: 3.6 | F8: 3.3 | G8: 13.7 | H8: 98 | I8: 110.37 | J8: 26.97 | K8: 0.88 | L8: 0.03 | M8: 0.13 | N8: 0.52
C9: итого | D9: =SUM(D5:D8) -> 595 | E9: =SUM(E5:E8) -> 21.6 | F9: =SUM(F5:F8) -> 34.3 | G9: =SUM(G5:G8) -> 66.2 | H9: =SUM(H5:H8) -> 667 | I9: =SUM(I5:I8) -> 535.81 | J9: =SUM(J5:J8) -> 70.75 | K9: =SUM(K5:K8) -> 2.1 | L9: =SUM(L5:L8) -> 0.15 | M9: =SUM(M5:M8) -> 0.41 | N9: =SUM(N5:N8) -> 1.22
C10: завтрак 2
C11: печенье | D11: 50 | E11: 1.5 | F11: 2 | G11: 14.9 | H11: 83.4 | I11: 0 | J11: 4 | K11: 0.4 | L11: 0 | M11: 0 | N11: 0
C12: кефир | D12: 200 | E12: 5.7 | F12: 6.3 | G12: 17.6 | H12: 151 | I12: 235.2 | J12: 27.44 | K12: 0.23 | L12: 0.06 | M12: 0.33 | N12: 1.37
C13: итого | D13: =SUM(D11:D12) -> 250 | E13: =SUM(E11:E12) -> 7.2 | F13: 8.3 | G13: 32.5 | H13: 234.4 | I13: 235.2 | J13: 31.44 | K13: 0.63 | L13: 0.06 | M13: 0.33 | N13: 1.37
C14: обед
B15: 18 | C15: салат из моркови с изюмом | D15: 100 | E15: 1.7 | F15: 4.5 | G15: 8.6 | H15: 87 | I15: 31.77 | J15: 28.94 | K15: 1.02 | L15: 0.05 | M15: 0.05 | N15: 8.04
B16: 58 | C16: Борщ со свежей капустой | D16: 300 | E16: 2.4 | F16: 6.4 | G16: 15.4 | H16: 133 | I16: 48.85 | J16: 27.47 | K16: 1.3 | L16: 0.06 | M16: 0.07 | N16: 9.54
B17: 96 | C17: гуляш из говядины | D17: 120 | E17: 16.6 | F17: 17.2 | G17: 3.7 | H17: 237 | I17: 13.53 | J17: 22.3 | K17: 2.51 | L17: 0.04 | M17: 0.1 | N17: 0.33
B18: 183 | C18: каша гречневая рссыпчатая | D18: 185 | E18: 10.6 | F18: 6.8 | G18: 46.3 | H18: 312 | I18: 17.21 | J18: 162.83 | K18: 5.58 | L18: 0.31 | M18: 0.16 | N18: 0
B19: 319 | C19: напиток из шиповника | D19: 200 | E19: 0.7 | F19: 0.3 | G19: 29 | H19: 127 | I19: 12.22 | J19: 3.23 | K19: 0.64 | L19: 0.01 | M19: 0.05 | N19: 80
B20: 1.5 | C20: хлеб пшеничный | D20: 70 | E20: 3.1 | F20: 7 | G20: 33.8 | H20: 172.2 | I20: 16.1 | J20: 23.1 | K20: 1.4 | L20: 0.11 | M20: 0.04 | N20: 0
B21: 1.6 | C21: хлеб ржаной | D21: 40 | E21: 2.6 | F21: 0.48 | G21: 13.3 | H21: 77.2 | I21: 14 | J21: 18.8 | K21: 1.56 | L21: 0.07 | M21: 0.02 | N21: 0
C22: итого | D22: =SUM(D15:D21) -> 1015 | E22: 37.7 | F22: 42.68 | G22: 150.1 | H22: 1145.4 | I22: 153.68 | J22: 286.67 | K22: 14.01 | L22: 0.65 | M22: 0.49 | N22: 97.91
C23: полдник
B24: 324 | C24: кисель из конц. | D24: 200 | E24: 0 | F24: 0 | G24: 20 | H24: 76 | I24: 0.48 | J24: 0 | K24: 0.06 | L24: 0 | M24: 0 | N24: 0
C25: вафли | D25: 50 | E25: 1.5 | F25: 2 | G25: 14.9 | H25: 83.4 | I25: 0 | J25: 4 | K25: 0.4 | L25: 0 | M25: 0 | N25: 0
C26: Фрукт в ассортименте
C27: итого | D27: =SUM(D24:D25) -> 250 | E27: =SUM(E24:E25) -> 1.5 | F27: 2 | G27: 34.9 | H27: 159.4 | I27: 0.48 | J27: 4 | K27: 0.46 | L27: 0 | M27: 0 | N27: 0
C28: ужин
B29: 8 | C29: салат из капусты с яблоками | D29: 100 | E29: 1.8 | F29: 4.6 | G29: 9.6 | H29: 91 | I29: 47.25 | J29: 16.42 | K29: 1.07 | L29: 0.03 | M29: 0.4 | N29: 19.55
B30: 79 | C30: рыба припущенная | D30: 120 | E30: 21.2 | F30: 1.2 | G30: 0.7 | H30: 99 | I30: 1.95 | J30: 1.75 | K30: 0.05 | L30: 0.01 | M30: 0.01 | N30: 0.11
B31: 146 | C31: картофельное пюре | D31: 200 | E31: 4.1 | F31: 6.3 | G31: 26.7 | H31: 187 | I31: 47.47 | J31: 37.87 | K31: 1.38 | L31: 0.16 | M31: 0.14 | N31: 13.84
B32: 302 | C32: чай с сахаром,лимоном | D32: 200 | E32: 0.2 | F32: 0 | G32: 9.3 | H32: 38 | I32: 2.73 | J32: 0.73 | K32: 0.06 | L32: 0 | M32: 0 | N32: 1.12
B33: 1.5 | C33: хлеб пшеничный | D33: 70 | E33: 3.1 | F33: 7 | G33: 33.8 | H33: 172.2 | I33: 16.1 | J33: 23.1 | K33: 1.4 | L33: 0.11 | M33: 0.04 | N33: 0
B34: 1.6 | C34: хлеб ржаной | D34: 40 | E34: 2.6 | F34: 0.48 | G34: 13.3 | H34: 77.2 | I34: 14 | J34: 18.8 | K34: 1.56 | L34: 0.07 | M34: 0.02 | N34: 0
C35: итого | D35: =SUM(D29:D34) -> 730 | E35: =SUM(E29:E34) -> 33 | F35: 19.58 | G35: 93.4 | H35: 664.4 | I35: 129.5 | J35: 98.67 | K35: 5.52 | L35: 0.38 | M35: 0.61 | N35: 34.62
B36: 298 | C36: Кисломолочный продукт | D36: 200 | E36: 5.7 | F36: 6.3 | G36: 17.6 | H36: 151 | I36: 235.2 | J36: 27.44 | K36: 0.23 | L36: 0.06 | M36: 0.33 | N36: 1.37
C37: Итого за день | D37: =D9+D13+D22+D27+D35+D36 -> 3040 | E37: 106.7 | F37: 113.16 | G37: 394.7 | H37: 3021.6 | I37: 1289.87 | J37: 518.97 | K37: 22.95 | L37: 1.3 | M37: 2.17 | N37: 136.49

Sheet 6 день
A1: 6 день
B2: № по сборн. Рецеп. | C2: наименование | D2: выход, гр. | E2: белки,г. | F2: жиры,г. | G2: углеводы,г. | H2: Энерг.цен.,ккал | I2: Минеральные элементы | L2: Витамины
I3: Са | J3: Mg | K3: Fe | L3: В1, мг. | M3: В2, мг. | N3: С, мг.
C4: завтрак
B5: 1.3 | C5: Бутерброд с маслом | D5: 115 | E5: 2.4 | F5: 12.7 | G5: 14.6 | H5: 186 | I5: 8.7 | J5: 9.9 | K5: 0.63 | L5: 0.05 | M5: 0.03 | N5: 0
B6: 208 | C6: каша пшенная молочная | D6: 250 | E6: 6.7 | F6: 7.6 | G6: 32.6 | H6: 222 | I6: 120.25 | J6: 32.58 | K6: 1.65 | L6: 0.12 | M6: 0.16 | N6: 0.47
B7: 304 | C7: кофейный напиток | D7: 200 | E7: 2.9 | F7: 2.8 | G7: 14.9 | H7: 94 | I7: 105.86 | J7: 12.18 | K7: 0.11 | L7: 0.03 | M7: 0.12 | N7: 0.52
C8: итого | D8: =SUM(D5:D7) -> 565 | E8: =SUM(E5:E7) -> 12 | F8: =SUM(F5:F7) -> 23.1 | G8: =SUM(G5:G7) -> 62.1 | H8: =SUM(H5:H7) -> 502 | I8: =SUM(I5:I7) -> 234.81 | J8: =SUM(J5:J7) -> 54.66 | K8: =SUM(K5:K7) -> 2.39 | L8: =SUM(L5:L7) -> 0.2 | M8: =SUM(M5:M7) -> 0.31 | N8: =SUM(N5:N7) -> 0.99
C9: завтрак 2
B10: 302 | C10: чай с сахаром | D10: 200 | E10: 0.2 | F10: 0 | G10: 9.3 | H10: 38 | I10: 2.73 | J10: 0.73 | K10: 0.06 | L10: 0 | M10: 0 | N10: 1.12
C11: Вафли | D11: 50 | E11: 1.5 | F11: 2 | G11: 14.9 | H11: 83.4 | I11: 0 | J11: 4 | K11: 0.4 | L11: 0 | M11: 0 | N11: 0
C12: итого | D12: =SUM(D10:D11) -> 250 | E12: =SUM(E10:E11) -> 1.7 | F12: 2 | G12: 24.2 | H12: 121.4 | I12: 2.73 | J12: 4.73 | K12: 0.46 | L12: 0 | M12: 0 | N12: 1.12
C13: обед
B14: 40 | C14: салат,,степной,, | D14: 100 | E14: 1.6 | F14: 3.4 | G14: 8.2 | H14: 74 | I14: 18.46 | J14: 19.53 | K14: 0.61 | L14: 0.06 | M14: 0.05 | N14: 2.98
B15: 59 | C15: Рассольник | D15: 300 | E15: 2.9 | F15: 7.5 | G15: 17.6 | H15: 156 | I15: 40.68 | J15: 32.54 | K15: 1.23 | L15: 0.12 | M15: 0.09 | N15: 12.61
B16: 142 | C16: кнели курин.с рисом | D16: 100 | E16: 17.1 | F16: 23.6 | G16: 6.1 | H16: 306 | I16: 25.66 | J16: 19.74 | K16: 1.42 | L16: 0.06 | M16: 0.14 | N16: 0.74
B17: 227 | C17: рожки отварные | D17: 185 | E17: 6.5 | F17: 4.4 | G17: 40 | H17: 233 | I17: 11.06 | J17: 8.77 | K17: 0.88 | L17: 0.08 | M17: 0.02 | N17: 0
B18: 317 | C18: напиток витамин. | D18: 200 | E18: 0 | F18: 0 | G18: 15.8 | H18: 60 | I18: 220 | J18: 12.18 | K18: 0.16 | L18: 0.3 | M18: 0.38 | N18: 0.5
B19: 1.5 | C19: хлеб пшеничный | D19: 70 | E19: 3.1 | F19: 7 | G19: 33.8 | H19: 172.2 | I19: 16.1 | J19: 23.1 | K19: 1.4 | L19: 0.11 | M19: 0.04 | N19: 0
B20: 1.6 | C20: хлеб ржаной | D20: 40 | E20: 2.6 | F20: 0.48 | G20: 13.3 | H20: 77.2 | I20: 14 | J20: 18.8 | K20: 1.56 | L20: 0.07 | M20: 0.02 | N20: 0
C21: итого | D21: =SUM(D14:D20) -> 995 | E21: 33.8 | F21: 46.38 | G21: 134.8 | H21: 1078.4 | I21: 345.96 | J21: 134.66 | K21: 7.26 | L21: 0.8 | M21: 0.74 | N21: 16.83
C22: полдник
B23: 284 | C23: шанежка наливная | D23: 100 | E23: 6.6 | F23: 6.1 | G23: 40.3 | H23: 249 | I23: 14.2 | J23: 9.34 | K23: 0.77 | L23: 0.08 | M23: 0.04 | N23: 0
B24: 319 | C24: напиток из шиповника | D24: 200 | E24: 0.7 | F24: 0.3 | G24: 29 | H24: 127 | I24: 12.22 | J24: 3.23 | K24: 0.64 | L24: 0.01 | M24: 0.05 | N24: 80
C25: Фрукт в ассортименте
C26: итого | D26: =SUM(D23:D24) -> 300 | E26: =SUM(E23:E24) -> 7.3 | F26: 6.4 | G26: 69.3 | H26: 376 | I26: 26.42 | J26: 12.57 | K26: 1.41 | L26: 0.09 | M26: 0.09 | N26: 80
C27: ужин
B28: 36 | C28: салат,,мазайка,, | D28: 100 | E28: 1.6 | F28: 6.5 | G28: 9.1 | H28: 114 | I28: 18.08 | J28: 17.99 | K28: 0.54 | L28: 0.04 | M28: 0.04 | N28: 2.16
B29: 119 | C29: плов из говядины | D29: 210 | E29: 21.9 | F29: 21.2 | G29: 35.5 | H29: 428 | I29: 17.94 | J29: 49.42 | K29: 3.14 | L29: 0.06 | M29: 0.13 | N29: 0.36
B30: 302 | C30: чай с сахаром,лимоном | D30: 200 | E30: 0.2 | F30: 0 | G30: 9.3 | H30: 38 | I30: 2.73 | J30: 0.73 | K30: 0.06 | L30: 0 | M30: 0 | N30: 1.12
B31: 1.5 | C31: хлеб пшеничный | D31: 70 | E31: 3.1 | F31: 7 | G31: 33.8 | H31: 172.2 | I31: 16.1 | J31: 23.1 | K31: 1.4 | L31: 0.11 | M31: 0.04 | N31: 0
B32: 1.6 | C32: хлеб ржаной | D32: 40 | E32: 2.6 | F32: 0.48 | G32: 13.3 | H32: 77.2 | I32: 14 | J32: 18.8 | K32: 1.56 | L32: 0.07 | M32: 0.02 | N32: 0
C33: итого | D33: =SUM(D28:D32) -> 620 | E33: =SUM(E28:E32) -> 29.4 | F33: 35.18 | G33: 101 | H33: 829.4 | I33: 68.85 | J33: 110.04 | K33: 6.7 | L33: 0.28 | M33: 0.23 | N33: 3.64
B34: 298 | C34: Кисломолочный продукт | D34: 200 | E34: 5.7 | F34: 6.3 | G34: 17.6 | H34: 151 | I34: 235.2 | J34: 27.44 | K34: 0.23 | L34: 0.06 | M34: 0.33 | N34: 1.37
C35: итого за день | D35: =D8+D12+D21+D26+D33+D34 -> 2930 | E35: 89.9 | F35: 119.36 | G35: 409 | H35: 3058.2 | I35: 913.97 | J35: 344.1 | K35: 18.45 | L35: 1.43 | M35: 1.7 | N35: 103.95

Sheet 7 день
A1: 7 день
B2: № по сборн. Рецеп. | C2: блюдо | D2: выход, гр. | E2: белки,г. | F2: жиры,г. | G2: углеводы,г. | H2: Энерг.цен.,ккал | I2: Минеральные элементы | L2: Витамины
I3: Са | J3: Mg | K3: Fe | L3: В1, мг. | M3: В2, мг. | N3: С, мг.
C4: завтрак
B5: 1.3 | C5: Бутерброд с маслом | D5: 115 | E5: 2.4 | F5: 12.7 | G5: 14.6 | H5: 186 | I5: 8.7 | J5: 9.9 | K5: 0.63 | L5: 0.05 | M5: 0.03 | N5: 0
B6: 210 | C6: каша,,дружба,, | D6: 250 | E6: 5.7 | F6: 7.8 | G6: 30.1 | H6: 216 | I6: 114.7 | J6: 33.38 | K6: 0.72 | L6: 0.11 | M6: 0.14 | N6: 0.48
C7: какао с молоком | D7: 200 | E7: 3.6 | F7: 3.3 | G7: 13.7 | H7: 98 | I7: 110.37 | J7: 26.97 | K7: 0.88 | L7: 0.03 | M7: 0.13 | N7: 0.52
C8: итого | D8: =SUM(D5:D7) -> 565 | E8: =SUM(E5:E7) -> 11.7 | F8: =SUM(F5:F7) -> 23.8 | G8: =SUM(G5:G7) -> 58.4 | H8: =SUM(H5:H7) -> 500 | I8: =SUM(I5:I7) -> 233.77 | J8: =SUM(J5:J7) -> 70.25 | K8: =SUM(K5:K7) -> 2.23 | L8: =SUM(L5:L7) -> 0.19 | M8: =SUM(M5:M7) -> 0.3 | N8: =SUM(N5:N7) -> 1
C9: завтрак 2
B10: 297 | C10: Йогурт | D10: 200 | E10: 8 | F10: 2.9 | G10: 11.6 | H10: 109 | I10: 243.04 | J10: 29.4 | K10: 0.2 | L10: 0.06 | M10: 0.29 | N10: 1.18
C11: Батон пшеничный | D11: 30 | E11: 3.9 | F11: 0.5 | G11: 24 | H11: 120 | I11: 11.5 | J11: 16.5 | K11: 1 | L11: 0.08 | M11: 0.03 | N11: 0
C12: итого | D12: =SUM(D10:D11) -> 230 | E12: =SUM(E10:E11) -> 11.9 | F12: 3.4 | G12: 35.6 | H12: 229 | I12: 254.54 | J12: 45.9 | K12: 1.2 | L12: 0.14 | M12: 0.32 | N12: 1.18
C13: обед
B14: 15 | C14: салат из св.огурц.помид. | D14: 100 | E14: 0.8 | F14: 4.7 | G14: 3.7 | H14: 63 | I14: 15 | J14: 12.07 | K14: 0.56 | L14: 0.03 | M14: 0.02 | N14: 5.7
B15: 63 | C15: суп карт.с крупой | D15: 300 | E15: 2.6 | F15: 2.1 | G15: 19.3 | H15: 113 | I15: 15.74 | J15: 24.01 | K15: 0.92 | L15: 0.08 | M15: 0.06 | N15: 7
B16: 80 | C16: Рыба тушеная с овощами | D16: 120 | E16: 10.7 | F16: 5.2 | G16: 5.6 | H16: 113 | I16: 9.71 | J16: 11.61 | K16: 0.34 | L16: 0.02 | M16: 0.02 | N16: 1.55
B17: 146 | C17: картофельное пюре | D17: 200 | E17: 4.1 | F17: 6.3 | G17: 26.7 | H17: 187 | I17: 47.47 | J17: 37.87 | K17: 1.38 | L17: 0.16 | M17: 0.14 | N17: 13.84
B18: 309 | C18: компот из кураги | D18: 200 | E18: 1.2 | F18: 0.1 | G18: 29.5 | H18: 127 | I18: 34.67 | J18: 21.7 | K18: 0.73 | L18: 0.02 | M18: 0.04 | N18: 0.16
B19: 1.5 | C19: хлеб пшеничный | D19: 70 | E19: 3.1 | F19: 7 | G19: 33.8 | H19: 172.2 | I19: 16.1 | J19: 23.1 | K19: 1.4 | L19: 0.11 | M19: 0.04 | N19: 0
B20: 1.6 | C20: хлеб ржаной | D20: 40 | E20: 2.6 | F20: 0.48 | G20: 13.3 | H20: 77.2 | I20: 14 | J20: 18.8 | K20: 1.56 | L20: 0.07 | M20: 0.02 | N20: 0
C21: итого | D21: =SUM(D14:D20) -> 1030 | E21: 25.1 | F21: 25.88 | G21: 131.9 | H21: 852.4 | I21: 152.69 | J21: 149.16 | K21: 6.89 | L21: 0.49 | M21: 0.34 | N21: 28.25
C22: полдник
B23: 300 | C23: чай с сах. | D23: 200 | E23: 0.2 | F23: 0 | G23: 9.1 | H23: 36 | I23: 0.26 | J23: 0 | K23: 0.03 | L23: 0 | M23: 0 | N23: 0
B24: 257 | C24: блины | D24: 160 | E24: 11.4 | F24: 20.2 | G24: 49.9 | H24: 433 | I24: 137.03 | J24: 23.86 | K24: 1.07 | L24: 0.12 | M24: 0.2 | N24: 0.57
C25: Фрукт в ассортименте
C26: итого | D26: =SUM(D23:D24) -> 360 | E26: =SUM(E23:E24) -> 11.6 | F26: 20.2 | G26: 59 | H26: 469 | I26: 137.29 | J26: 23.86 | K26: 1.1 | L26: 0.12 | M26: 0.2 | N26: 0.57
C27: ужин
B28: 10 | C28: салат из капусты с кукур. | D28: 100 | E28: 2.2 | F28: 6.3 | G28: 8 | H28: 102 | I28: 47.25 | J28: 16.42 | K28: 1.07 | L28: 0.03 | M28: 0.04 | N28: 19.55
B29: 142 | C29: кнели курин.с рисом | D29: 100 | E29: 17.1 | F29: 23.6 | G29: 6.1 | H29: 306 | I29: 25.66 | J29: 19.74 | K29: 1.42 | L29: 0.06 | M29: 0.14 | N29: 0.74
B30: 227 | C30: рожки отварные | D30: 185 | E30: 6.5 | F30: 4.4 | G30: 40 | H30: 233 | I30: 11.06 | J30: 8.77 | K30: 0.88 | L30: 0.08 | M30: 0.02 | N30: 0
B31: 300 | C31: чай с сах. | D31: 200 | E31: 0.2 | F31: 0 | G31: 9.1 | H31: 36 | I31: 0.26 | J31: 0 | K31: 0.03 | L31: 0 | M31: 0 | N31: 0
B32: 1.5 | C32: хлеб пшеничный | D32: 70 | E32: 3.1 | F32: 7 | G32: 33.8 | H32: 172.2 | I32: 16.1 | J32: 23.1 | K32: 1.4 | L32: 0.11 | M32: 0.04 | N32: 0
B33: 1.6 | C33: хлеб ржаной | D33: 40 | E33: 2.6 | F33: 0.48 | G33: 13.3 | H33: 77.2 | I33: 14 | J33: 18.8 | K33: 1.56 | L33: 0.07 | M33: 0.02 | N33: 0
C34: итого | D34: =SUM(D28:D33) -> 695 | E34: =SUM(E28:E33) -> 31.7 | F34: 41.78 | G34: 110.3 | H34: 926.4 | I34: 114.33 | J34: 86.83 | K34: 6.36 | L34: 0.35 | M34: 0.26 | N34: 20.29
B35: 298 | C35: Кисломолочный продукт | D35: 200 | E35: 5.7 | F35: 6.3 | G35: 17.6 | H35: 151 | I35: 235.2 | J35: 27.44 | K35: 0.23 | L35: 0.06 | M35: 0.33 | N35: 1.37
C36: итого за день | D36: =SUM(D8+D12+D21+D26+D34+D35) -> 3080 | E36: 97.7 | F36: 121.36 | G36: 412.8 | H36: 3127.8 | I36: 1127.82 | J36: 403.44 | K36: 18.01 | L36: 1.35 | M36: 1.75 | N36: 52.66

Sheet 8 день
A1: 8 день
B2: № по сборн. Рецеп. | C2: наименование | D2: выход, гр. | E2: белки,г. | F2: жиры,г. | G2: углеводы,г. | H2: Энерг.цен.,ккал | I2: Минеральные элементы | L2: Витамины
I3: Са | J3: Mg | K3: Fe | L3: В1, мг. | M3: В2, мг. | N3: С, мг.
C4: завтрак
B5: 1.3 | C5: Бутерброд с маслом | D5: 115 | E5: 2.4 | F5: 12.7 | G5: 14.6 | H5: 186 | I5: 8.7 | J5: 9.9 | K5: 0.63 | L5: 0.05 | M5: 0.03 | N5: 0
B6: 188 | C6: каша ячневая молочная | D6: 250 | E6: 5.8 | F6: 4.8 | G6: 36.3 | H6: 224 | I6: 46.14 | J6: 27.88 | K6: 1.03 | L6: 0.13 | M6: 0.05 | N6: 0
B7: 304 | C7: кофейный напиток | D7: 200 | E7: 2.9 | F7: 2.8 | G7: 14.9 | H7: 94 | I7: 105.86 | J7: 12.18 | K7: 0.11 | L7: 0.03 | M7: 0.12 | N7: 0.52
C8: итого | D8: =SUM(D5:D7) -> 565 | E8: =SUM(E5:E7) -> 11.1 | F8: =SUM(F5:F7) -> 20.3 | G8: =SUM(G5:G7) -> 65.8 | H8: =SUM(H5:H7) -> 504 | I8: =SUM(I5:I7) -> 160.7 | J8: =SUM(J5:J7) -> 49.96 | K8: =SUM(K5:K7) -> 1.77 | L8: =SUM(L5:L7) -> 0.21 | M8: =SUM(M5:M7) -> 0.2 | N8: =SUM(N5:N7) -> 0.52
C9: завтрак 2
B10: 239 | C10: Запеканка из творога | D10: 170 | E10: 28.9 | F10: 20.3 | G10: 43.2 | H10: 475 | I10: 281 | J10: 42.53 | K10: 1.08 | L10: 0.1 | M10: 0.43 | N10: 0.56
B11: 302 | C11: чай с сахаром | D11: 200 | E11: 0.2 | F11: 0 | G11: 9.3 | H11: 38 | I11: 2.73 | J11: 0.73 | K11: 0.06 | L11: 0 | M11: 0 | N11: 1.12
C12: итого | D12: =SUM(D10:D11) -> 370 | E12: =SUM(E10:E11) -> 29.1 | F12: 20.3 | G12: 52.5 | H12: 513 | I12: 283.73 | J12: 43.26 | K12: 1.14 | L12: 0.1 | M12: 0.43 | N12: 1.68
C13: обед
B14: 18 | C14: салат из моркови с изюмом | D14: 100 | E14: 1.8 | F14: 0.1 | G14: 23.7 | H14: 108 | I14: 37.71 | J14: 39.56 | K14: 0.88 | L14: 0.05 | M14: 0.07 | N14: 4.12
B15: 63 | C15: суп карт.с крупой геркулес | D15: 300 | E15: 3.2 | F15: 2.6 | G15: 23.2 | H15: 136 | I15: 18.89 | J15: 28.81 | K15: 1.1 | L15: 0.1 | M15: 0.07 | N15: 8.4
B16: 113 | C16: Говядина тушеная с капустой | D16: 250 | E16: 25.3 | F16: 56.8 | G16: 13.4 | H16: 672 | I16: 75.62 | J16: 54.26 | K16: 4.58 | L16: 0.11 | M16: 0.25 | N16: 26.68
B17: 309 | C17: компот из изюма | D17: 200 | E17: 1.2 | F17: 0.1 | G17: 29.5 | H17: 127 | I17: 34.67 | J17: 21.7 | K17: 0.73 | L17: 0.02 | M17: 0.04 | N17: 0.16
B18: 1.5 | C18: хлеб пшеничный | D18: 70 | E18: 3.1 | F18: 7 | G18: 33.8 | H18: 172.2 | I18: 16.1 | J18: 23.1 | K18: 1.4 | L18: 0.11 | M18: 0.04 | N18: 0
B19: 1.6 | C19: хлеб ржаной | D19: 40 | E19: 2.6 | F19: 0.48 | G19: 13.3 | H19: 77.2 | I19: 14 | J19: 18.8 | K19: 1.56 | L19: 0.07 | M19: 0.02 | N19: 0
C20: итого | D20: =SUM(D14:D19) -> 960 | E20: 37.2 | F20: 67.08 | G20: 136.9 | H20: 1292.4 | I20: 196.99 | J20: 186.23 | K20: 10.25 | L20: 0.46 | M20: 0.49 | N20: 39.36
B21: 331 | C21: кисель витам. | D21: 200 | E21: 0 | F21: 0 | G21: 21.7 | H21: 85 | I21: 0 | J21: 0 | K21: 0 | L21: 0.27 | M21: 0.34 | N21: 10
B22: 264 | C22: Пирог с яблоками | D22: 100 | E22: 6.1 | F22: 5.3 | G22: 44 | H22: 252 | I22: 18.93 | J22: 10.98 | K22: 1.42 | L22: 0.08 | M22: 0.06 | N22: 1.39
C23: Фрукт в ассортименте
C24: итого | D24: =SUM(D21:D22) -> 300 | E24: =SUM(E21:E22) -> 6.1 | F24: 5.3 | G24: 65.7 | H24: 337 | I24: 18.93 | J24: 10.98 | K24: 1.42 | L24: 0.35 | M24: 0.4 | N24: 11.39
C25: ужин
B26: 38 | C26: салат карт.с морк,зел.гор. | D26: 100 | E26: 2.9 | F26: 6.3 | G26: 8.8 | H26: 107 | I26: 19.88 | J26: 26.4 | K26: 0.91 | L26: 0.11 | M26: 0.1 | N26: 6
B27: 2.2 | C27: Тефтели | D27: 120 | E27: 18.54 | F27: 12.45 | G27: 7.21 | H27: 216 | I27: 35.58 | J27: 20.75 | K27: 0.92 | L27: 0.04 | M27: 0.09 | N27: 0.35
B28: 183 | C28: каша гречневая рссыпчатая | D28: 185 | E28: 10.6 | F28: 6.8 | G28: 46.3 | H28: 312 | I28: 17.21 | J28: 162.83 | K28: 5.58 | L28: 0.31 | M28: 0.16 | N28: 0
B29: 302 | C29: чай с сахаром,лимоном | D29: 200 | E29: 0.2 | F29: 0 | G29: 9.3 | H29: 38 | I29: 2.73 | J29: 0.73 | K29: 0.06 | L29: 0 | M29: 0 | N29: 1.12
B30: 1.5 | C30: хлеб пшеничный | D30: 70 | E30: 3.1 | F30: 7 | G30: 33.8 | H30: 172.2 | I30: 16.1 | J30: 23.1 | K30: 1.4 | L30: 0.11 | M30: 0.04 | N30: 0
B31: 1.6 | C31: хлеб ржаной | D31: 40 | E31: 2.6 | F31: 0.48 | G31: 13.3 | H31: 77.2 | I31: 14 | J31: 18.8 | K31: 1.56 | L31: 0.07 | M31: 0.02 | N31: 0
C32: итого | D32: =SUM(D26:D31) -> 715 | E32: =SUM(E26:E31) -> 37.94 | F32: 33.03 | G32: 118.71 | H32: 922.4 | I32: 105.5 | J32: 252.61 | K32: 10.43 | L32: 0.64 | M32: 0.41 | N32: 7.47
B33: 298 | C33: кисломол.прод. | D33: 200 | E33: 5.7 | F33: 6.3 | G33: 17.6 | H33: 151 | I33: 235.2 | J33: 27.44 | K33: 0.23 | L33: 0.06 | M33: 0.33 | N33: 1.37
C34: итого за день | D34: =SUM(D8+D12+D20+D24+D32+D33) -> 3110 | E34: 127.14 | F34: 152.31 | G34: 457.21 | H34: 3719.8 | I34: 1001.05 | J34: 570.48 | K34: 25.24 | L34: 1.82 | M34: 2.26 | N34: 61.79

Sheet 9 день
A1: 9 день
B2: № по сборн. Рецеп. | C2: наименование | D2: выход, гр. | E2: белки,г. | F2: жиры,г. | G2: углеводы,г. | H2: Энерг.цен.,ккал | I2: Минеральные элементы | L2: Витамины
I3: Са | J3: Mg | K3: Fe | L3: В1, мг. | M3: В2, мг. | N3: С, мг.
C4: завтрак
B5: 1.3 | C5: Бутерброд с маслом | D5: 115 | E5: 2.4 | F5: 12.7 | G5: 14.6 | H5: 186 | I5: 8.7 | J5: 9.9 | K5: 0.63 | L5: 0.05 | M5: 0.03 | N5: 0
B6: 192 | C6: каша,,геркулес,, | D6: 250 | E6: 7.2 | F6: 9.1 | G6: 30.8 | H6: 239 | I6: 120.32 | J6: 57.76 | K6: 1.46 | L6: 0.16 | M6: 0.14 | N6: 0.18
B7: 304 | C7: кофейный напиток | D7: 200 | E7: 2.9 | F7: 2.8 | G7: 14.9 | H7: 94 | I7: 105.86 | J7: 12.18 | K7: 0.11 | L7: 0.03 | M7: 0.12 | N7: 0.52
C8: итого | D8: =SUM(D5:D7) -> 565 | E8: =SUM(E5:E7) -> 12.5 | F8: =SUM(F5:F7) -> 24.6 | G8: =SUM(G5:G7) -> 60.3 | H8: =SUM(H5:H7) -> 519 | I8: =SUM(I5:I7) -> 234.88 | J8: =SUM(J5:J7) -> 79.84 | K8: =SUM(K5:K7) -> 2.2 | L8: =SUM(L5:L7) -> 0.24 | M8: =SUM(M5:M7) -> 0.29 | N8: =SUM(N5:N7) -> 0.7
C9: завтрак 2
B10: 1.4 | C10: сыр голланд. | D10: 30 | E10: 7.9 | F10: 8 | G10: 0 | H10: 105 | I10: 300 | J10: 16.5 | K10: 0.21 | L10: 0.01 | M10: 0.11 | N10: 0.21
B11: 306 | C11: какао с молоком | D11: 200 | E11: 3.6 | F11: 3.3 | G11: 13.7 | H11: 98 | I11: 110.37 | J11: 26.97 | K11: 0.88 | L11: 0.03 | M11: 0.13 | N11: 0.52
C12: итого | D12: =SUM(D10:D11) -> 230 | E12: =SUM(E10:E11) -> 11.5 | F12: 11.3 | G12: 13.7 | H12: 203 | I12: 410.37 | J12: 43.47 | K12: 1.09 | L12: 0.04 | M12: 0.24 | N12: 0.73
C13: обед
B14: 15 | C14: салат из помид.огурц. | D14: 100 | E14: 0.8 | F14: 4.7 | G14: 3.7 | H14: 63 | I14: 15 | J14: 12.07 | K14: 0.56 | L14: 0.03 | M14: 0.02 | N14: 5.7
B15: 67 | C15: суп Крестьянский | D15: 300 | E15: 2.8 | F15: 6.6 | G15: 15.3 | H15: 138 | I15: 38.36 | J15: 21.53 | K15: 0.8 | L15: 0.06 | M15: 0.05 | N15: 9.61
B16: 122 | C16: Котлета "Здоровье" | D16: 250 | E16: 18.4 | F16: 17.4 | G16: 30.7 | H16: 362 | I16: 28.99 | J16: 57.29 | K16: 2.42 | L16: 0.11 | M16: 0.16 | N16: 1.69
B17: 309 | C17: компот из чернослива | D17: 200 | E17: 1.2 | F17: 0.1 | G17: 29.5 | H17: 127 | I17: 34.67 | J17: 21.7 | K17: 0.73 | L17: 0.02 | M17: 0.04 | N17: 0.16
B18: 227 | C18: рожки отварные | D18: 185 | E18: 6.5 | F18: 4.4 | G18: 40 | H18: 233 | I18: 11.06 | J18: 8.77 | K18: 0.88 | L18: 0.08 | M18: 0.02 | N18: 0
B19: 1.5 | C19: хлеб пшеничный | D19: 70 | E19: 3.1 | F19: 7 | G19: 33.8 | H19: 172.2 | I19: 16.1 | J19: 23.1 | K19: 1.4 | L19: 0.11 | M19: 0.04 | N19: 0
B20: 1.6 | C20: хлеб ржаной | D20: 40 | E20: 2.6 | F20: 0.48 | G20: 13.3 | H20: 77.2 | I20: 14 | J20: 18.8 | K20: 1.56 | L20: 0.07 | M20: 0.02 | N20: 0
C21: Фрукт в ассортименте
C22: итого | D22: =SUM(D14:D20) -> 1145 | E22: =SUM(E14:E20) -> 35.4 | F22: 40.68 | G22: 166.3 | H22: 1172.4 | I22: 158.18 | J22: 163.26 | K22: 8.35 | L22: 0.48 | M22: 0.35 | N22: 17.16
C23: полдник
C24: сок фруктовый | D24: 200 | E24: 0.5 | F24: 0 | G24: 10.6 | H24: 44 | I24: 7.85 | J24: 2.09 | K24: 0.79 | L24: 0.004 | M24: 0.005 | N24: 0.48
C25: печенье | D25: 50 | E25: 1.5 | F25: 2 | G25: 14.9 | H25: 83.4 | I25: 0 | J25: 4 | K25: 0.4 | L25: 0 | M25: 0 | N25: 0
C26: итого | D26: =SUM(D24:D25) -> 250 | E26: =SUM(E24:E25) -> 2 | F26: 2 | G26: 25.5 | H26: 127.4 | I26: 7.85 | J26: 6.09 | K26: 1.19 | L26: 0.004 | M26: 0.005 | N26: 0.48
C27: ужин
B28: 39 | C28: салт карт.с огурц.солен. | D28: 100 | E28: 1.5 | F28: 5.2 | G28: 10 | H28: 95 | I28: 23.26 | J28: 21.11 | K28: 0.75 | L28: 0.06 | M28: 0.05 | N28: 6.41
B29: 142 | C29: кнели курин.с рисом | D29: 100 | E29: 17.1 | F29: 23.6 | G29: 6.1 | H29: 306 | I29: 25.66 | J29: 19.74 | K29: 1.42 | L29: 0.06 | M29: 0.14 | N29: 0.74
B30: 183 | C30: каша гречневая | D30: 185 | E30: 10.6 | F30: 6.8 | G30: 46.3 | H30: 312 | I30: 17.21 | J30: 162.83 | K30: 5.58 | L30: 0.31 | M30: 0.16 | N30: 0
B31: 300 | C31: чай с сах. | D31: 200 | E31: 0.2 | F31: 0 | G31: 9.1 | H31: 36 | I31: 0.26 | J31: 0 | K31: 0.03 | L31: 0 | M31: 0 | N31: 0
B32: 1.5 | C32: хлеб пшеничный | D32: 70 | E32: 3.1 | F32: 7 | G32: 33.8 | H32: 172.2 | I32: 16.1 | J32: 23.1 | K32: 1.4 | L32: 0.11 | M32: 0.04 | N32: 0
B33: 1.6 | C33: хлеб ржаной | D33: 40 | E33: 2.6 | F33: 0.48 | G33: 13.3 | H33: 77.2 | I33: 14 | J33: 18.8 | K33: 1.56 | L33: 0.07 | M33: 0.02 | N33: 0
C34: итого | D34: =SUM(D28:D33) -> 695 | E34: =SUM(E28:E33) -> 35.1 | F34: 43.08 | G34: 118.6 | H34: 998.4 | I34: 96.49 | J34: 245.58 | K34: 10.74 | L34: 0.61 | M34: 0.41 | N34: 7.15
B35: 298 | C35: Кисломолочный продукт | D35: 200 | E35: 5.7 | F35: 6.3 | G35: 17.6 | H35: 151 | I35: 235.2 | J35: 27.44 | K35: 0.23 | L35: 0.06 | M35: 0.33 | N35: 1.37
C36: итого за день | D36: =D8+D12+D22+D26+D34+D35 -> 3085 | E36: =E8+E12+E22+E26+E34+E35 -> 102.2 | F36: 127.96 | G36: 402 | H36: 3171.2 | I36: 1142.97 | J36: 565.68 | K36: 23.8 | L36: 1.434 | M36: 1.625 | N36: 27.59

Sheet 10 день
A1: 10день
B2: № по сборн. Рецеп. | C2: наименование | D2: выход, гр. | E2: белки,г. | F2: жиры,г. | G2: углеводы,г. | H2: Энерг.цен.,ккал | I2: Минеральные элементы | L2: Витамины
I3: Са | J3: Mg | K3: Fe | L3: В1, мг. | M3: В2, мг. | N3: С, мг.
C4: завтрак
B5: 1.3 | C5: Бутерброд с маслом | D5: 115 | E5: 2.4 | F5: 12.7 | G5: 14.6 | H5: 186 | I5: 8.7 | J5: 9.9 | K5: 0.63 | L5: 0.05 | M5: 0.03 | N5: 0
B6: 186 | C6: каша гречневая с молоком | D6: 250 | E6: 8.5 | F6: 4.6 | G6: 33.1 | H6: 218 | I6: 30.12 | J6: 98.41 | K6: 3.09 | L6: 0.18 | M6: 0.21 | N6: 0.52
B7: 1.4 | C7: сыр голланд. | D7: 30 | E7: 7.9 | F7: 8 | G7: 0 | H7: 105 | I7: 300 | J7: 16.5 | K7: 0.21 | L7: 0.01 | M7: 0.11 | N7: 0.21
B8: 306 | C8: какао с молоком | D8: 200 | E8: 3.6 | F8: 3.3 | G8: 13.7 | H8: 98 | I8: 110.37 | J8: 26.97 | K8: 0.88 | L8: 0.03 | M8: 0.13 | N8: 0.52
C9: итого | D9: =SUM(D5:D8) -> 595 | E9: =SUM(E5:E8) -> 22.4 | F9: =SUM(F5:F8) -> 28.6 | G9: =SUM(G5:G8) -> 61.4 | H9: =SUM(H5:H8) -> 607 | I9: =SUM(I5:I8) -> 449.19 | J9: =SUM(J5:J8) -> 151.78 | K9: =SUM(K5:K8) -> 4.81 | L9: =SUM(L5:L8) -> 0.27 | M9: =SUM(M5:M8) -> 0.48 | N9: =SUM(N5:N8) -> 1.25
C10: завтрак 2
B11: 234 | C11: омлет натуральный | D11: 155 | E11: 14.6 | F11: 25.6 | G11: 2.6 | H11: 299 | I11: 100.46 | J11: 16.81 | K11: 2.5 | L11: 0.07 | M11: 0.46 | N11: 0.22
B12: 302 | C12: чай с сахаром | D12: 200 | E12: 0.2 | F12: 0 | G12: 9.3 | H12: 38 | I12: 2.73 | J12: 0.73 | K12: 0.06 | L12: 0 | M12: 0 | N12: 1.12
C13: итого | D13: =SUM(D11:D12) -> 355 | E13: =SUM(E11:E12) -> 14.8 | F13: 25.6 | G13: 11.9 | H13: 337 | I13: 103.19 | J13: 17.54 | K13: 2.56 | L13: 0.07 | M13: 0.46 | N13: 1.34
C14: обед
B15: 9 | C15: салат из капусты с зел.гор. | D15: 100 | E15: 3.8 | F15: 9.1 | G15: 5.2 | H15: 123 | I15: 43.46 | J15: 16 | K15: 0.92 | L15: 0.04 | M15: 0.09 | N15: 13.21
B16: 70 | C16: свекольник | D16: 250 | E16: 2.5 | F16: 4.5 | G16: 15 | H16: 115 | I16: 33.33 | J16: 27.63 | K16: 1.39 | L16: 0.06 | M16: 0.06 | N16: 4.97
B17: 139 | C17: плов из курицы | D17: 250 | E17: 39.7 | F17: 48.8 | G17: 39.4 | H17: 764 | I17: 40.45 | J17: 64.12 | K17: 3.62 | L17: 0.11 | M17: 0.24 | N17: 0.95
B18: 319 | C18: напиток из шиповника | D18: 200 | E18: 0.7 | F18: 0.3 | G18: 29 | H18: 127 | I18: 12.22 | J18: 3.23 | K18: 0.64 | L18: 0.01 | M18: 0.05 | N18: 80
B19: 1.5 | C19: хлеб пшеничный | D19: 70 | E19: 3.1 | F19: 7 | G19: 33.8 | H19: 172.2 | I19: 16.1 | J19: 23.1 | K19: 1.4 | L19: 0.11 | M19: 0.04 | N19: 0
B20: 1.6 | C20: хлеб ржаной | D20: 40 | E20: 2.6 | F20: 0.48 | G20: 13.3 | H20: 77.2 | I20: 14 | J20: 18.8 | K20: 1.56 | L20: 0.07 | M20: 0.02 | N20: 0
C21: итого | D21: =SUM(D15:D20) -> 910 | E21: 52.4 | F21: 70.18 | G21: 135.7 | H21: 1378.4 | I21: 159.56 | J21: 152.88 | K21: 9.53 | L21: 0.4 | M21: 0.5 | N21: 99.13
C22: полдник
B23: 302 | C23: чай с сахаром | D23: 200 | E23: 0.2 | F23: 0 | G23: 9.3 | H23: 38 | I23: 2.73 | J23: 0.73 | K23: 0.06 | L23: 0 | M23: 0 | N23: 1.12
C24: вафли | D24: 50 | E24: 1.5 | F24: 2 | G24: 14.9 | H24: 83.4 | I24: 0 | J24: 4 | K24: 0.4 | L24: 0 | M24: 0 | N24: 0
C25: Фрукт в ассортименте
C26: итого | D26: =SUM(D23:D24) -> 250 | E26: =SUM(E23:E24) -> 1.7 | F26: 2 | G26: 24.2 | H26: 121.4 | I26: 2.73 | J26: 4.73 | K26: 0.46 | L26: 0 | M26: 0 | N26: 1.12
C27: ужин
B28: 40 | C28: салат,,степной,, | D28: 100 | E28: 1.6 | F28: 3.4 | G28: 8.2 | H28: 74 | I28: 18.46 | J28: 19.53 | K28: 0.61 | L28: 0.06 | M28: 0.05 | N28: 2.98
B29: 2.25 | C29: Котлеты мясные паровые | D29: 100 | E29: 16.82 | F29: 11.42 | G29: 7.28 | H29: 200 | I29: 12.6 | J29: 8.1 | K29: 5.6 | L29: 11.5 | M29: 10 | N29: 1.8
B30: 158 | C30: Рагу из овощей | D30: 230 | E30: 4.2 | F30: 17.8 | G30: 22.6 | H30: 276 | I30: 40.4 | J30: 31.07 | K30: 1.28 | L30: 0.08 | M30: 0.08 | N30: 5.1
B31: 302 | C31: чай с сах.лим. | D31: 200 | E31: 0.2 | F31: 0 | G31: 9.3 | H31: 38 | I31: 2.73 | J31: 0.73 | K31: 0.06 | L31: 0 | M31: 0 | N31: 1.12
B32: 1.5 | C32: хлеб пшеничный | D32: 70 | E32: 3.1 | F32: 7 | G32: 33.8 | H32: 172.2 | I32: 16.1 | J32: 23.1 | K32: 1.4 | L32: 0.11 | M32: 0.04 | N32: 0
B33: 1.6 | C33: хлеб ржаной | D33: 40 | E33: 2.6 | F33: 0.48 | G33: 13.3 | H33: 77.2 | I33: 14 | J33: 18.8 | K33: 1.56 | L33: 0.07 | M33: 0.02 | N33: 0
C34: итого | D34: =SUM(D28:D33) -> 740 | E34: =SUM(E28:E33) -> 28.52 | F34: 40.1 | G34: 94.48 | H34: 837.4 | I34: 104.29 | J34: 101.33 | K34: 10.51 | L34: 11.82 | M34: 10.19 | N34: 11
B35: 298 | C35: Кисломолочный продукт | D35: 200 | E35: 5.7 | F35: 6.3 | G35: 17.6 | H35: 151 | I35: 235.2 | J35: 27.44 | K35: 0.23 | L35: 0.06 | M35: 0.33 | N35: 1.37
C36: Итого за день | D36: =D9+D13+D21+D26+D34+D35 -> 3050 | E36: 125.52 | F36: 172.78 | G36: 345.28 | H36: 3432.2 | I36: 1054.16 | J36: 455.7 | K36: 28.1 | L36: 12.62 | M36: 11.96 | N36: 115.21

Sheet Итого
D4: белки,г. | E4: жиры,г. | F4: углеводы,г. | G4: Энер,цен. | H4: Са | I4: Mg | J4: Fe | K4: В1, мг. | L4: В2, мг. | M4: С, мг.
C5: 1 день | D5: 105.2 | E5: 133.24 | F5: 452.8 | G5: 3383.6 | H5: 1089.04 | I5: 414.62 | J5: 20.89 | K5: 1.224 | L5: 1.525 | M5: 122.24
C6: 2 день | D6: 139.22 | E6: 166.56 | F6: 453.28 | G6: 3816.2 | H6: 1023.67 | I6: 447.47 | J6: 30.81 | K6: 13.004 | L6: 12.135 | M6: 43.4
C7: 3 день | D7: 119.94 | E7: 134.99 | F7: 436.91 | G7: 3406.2 | H7: 1125.37 | I7: 499.34 | J7: 22.9 | K7: 1.59 | L7: 1.81 | M7: 35.67
C8: 4 день | D8: 64.6 | E8: 74.76 | F8: 317.3 | G8: 2179.2 | H8: 976.01 | I8: 341.26 | J8: 14.51 | K8: 1.06 | L8: 1.45 | M8: 48.9
C9: 5 день | D9: 112.3 | E9: 119.54 | F9: 441.4 | G9: 3258 | H9: 1306.66 | I9: 551.46 | J9: 25.5 | K9: 1.49 | L9: 2.23 | M9: 131.43
C10: 6 день | D10: 95.6 | E10: 126.84 | F10: 456.1 | G10: 3307.6 | H10: 944.07 | I10: 386 | J10: 21.41 | K10: 1.61 | L10: 1.76 | M10: 103.95
C11: 7 день | D11: 103.4 | E11: 128.84 | F11: 459.9 | G11: 3377.2 | H11: 1157.92 | I11: 445.34 | J11: 20.97 | K11: 1.53 | L11: 1.81 | M11: 52.66
C12: 8 день | D12: 132.84 | E12: 159.79 | F12: 504.31 | G12: 3969.2 | H12: 1031.15 | I12: 612.38 | J12: 28.2 | K12: 2 | L12: 2.32 | M12: 61.79
C13: 9 день | D13: 101.4 | E13: 131.04 | F13: 409.1 | G13: 3187.6 | H13: 1162.01 | I13: 598.81 | J13: 25.88 | K13: 1.534 | L13: 1.665 | M13: 27.59
C14: 10 день | D14: 131.22 | E14: 180.26 | F14: 392.38 | G14: 3681.6 | H14: 1084.26 | I14: 497.6 | J14: 31.06 | K14: 12.8 | L14: 12.02 | M14: 115.21
C15: ИТОГО | D15: =SUM(D5:D14) -> 1105.72 | E15: =SUM(E5:E14) -> 1355.86 | F15: 4323.48 | G15: 33566.4 | H15: 10900.16 | I15: =SUM(I5:I14) -> 4794.28 | J15: 242.13 | K15: 37.842 | L15: 38.725 | M15: 742.84
